Workbook

Sheet Bruk av regnearket
A1: BRUKSANVISNING
A4: 1 | B4: Finn frem resultatlister for løpet som skal legges inn, totalresultater og strekktider som viser strekktiden på beste klatrer og beste spurter.
A5: 2 | B5: Ranger løperne på spurt og klatring
A6: 3 | B6: Klikk på arkfane for riktig klasse og legg inn løpere (hvis de har løpt tidligere løp trenger man ikke registrere disse på nytt).
A7: 4 | B7: Legg inn riktig poengsum etter rangering ihht MOT.TV reglene på vinner (Gul), Klatrer (Blå) og Sprinter (Grønn).
B8: Poengsummer som skal brukers rangert fra nr 1 og utover er: 100, 80, 60, 50, 45, 40, 35, 30, 26, 22, 20, 20, 20, 20 osv
A9: 5 | B9: Trykk på Sorterknappen
A10: 6 | B10: Gå til neste klasse og gjenta pkt 1-5 osv
A11: 7 | B11: Det er lagt opp til 2 sprint- og 2 klatrestrekk i finalen, dvs at det deles ut dobbelt opp med poeng.
A12: 8 | B12: Arket markerer beste løper i kategoriene men tar ikke hensyn til løperens alder (hvis løpere står helt likt).
A13: 9 | B13: Arket regner fortløpende ut starttider for jaktstarten i finalen
A14: 10 | B14: Hvis verdiene i starttidkolonnen blir merkelige under utfylling, trykk "Sorter" knappen

Sheet D1314
I2: Sorter
C5: Gul ledertrøye | L5: Blå klatretrøye | V5: Grønn spurttrøye
A6: Navn | B6: Klubb | C6: Løp 1 | D6: Løp 2 | E6: Løp 3 | F6: Løp 4 | G6: Løp 5 | H6: Sammenlagt Gul | I6: Rangering | J6: Finale | K6: Total | L6: Løp 1 | M6: Løp 2 | N6: Løp 3 | O6: Løp 4 | P6: Løp 5 | Q6: Sammenlagt Blå | R6: Finale (1) | S6: Finale (2) | T6: Sluttsum | U6: Rangering | V6: Løp 1 | W6: Løp 2 | X6: Løp 3 | Y6: Løp 4 | Z6: Løp 5 | AA6: Sammenlagt Grønn | AB6: Finale (1) | AC6: Finale (M) | AD6: Sluttsum | AE6: Rangering
A7: Hanne Vassend | B7: Porsgrunn O-lag | C7: 80 | E7: 45 | F7: 60 | G7: 80 | H7: =IF(COUNT(C7:G7)>2,LARGE(C7:G7,1)+LARGE(C7:G7,2)+LARGE(C7:G7,3),SUM(C7:G7)) -> 220 | I7: =IF(H7=0,0,RANK(H7,$H$7:$H$39)) -> 3 | J7: 200 | K7: =H7+J7 -> 420 | L7: 100 | N7: 45 | O7: 35 | P7: 40 | Q7: =IF(COUNT(L7:P7)>2,LARGE(L7:P7,1)+LARGE(L7:P7,2)+LARGE(L7:P7,3),SUM(L7:P7)) -> 185 | R7: 160 | T7: =Q7+R7+S7 -> 345 | U7: =IF(T7=0,0,RANK(T7,$T$7:$T$39)) -> 3 | V7: 40 | X7: 80 | Y7: 45 | Z7: 60 | AA7: =IF(COUNT(V7:Z7)>2,LARGE(V7:Z7,1)+LARGE(V7:Z7,2)+LARGE(V7:Z7,3),SUM(V7:Z7)) -> 185 | AB7: 120 | AD7: =AA7+AB7+AC7 -> 305 | AE7: =IF(AD7=0,0,RANK(AD7,$AD$7:$AD$39)) -> 4
A8: Signe Bredholdt Jørgensen | B8: Sandefjord OK | C8: 100 | D8: 100 | E8: 60 | F8: 80 | G8: 60 | H8: 280 | I8: 2 | J8: 160 | K8: 440 | L8: 80 | M8: 80 | N8: 60 | O8: 80 | P8: 60 | Q8: 240 | R8: 200 | T8: 440 | U8: 1 | V8: 60 | W8: 100 | X8: 60 | Y8: 50 | Z8: 50 | AA8: 220 | AB8: 90 | AD8: 310 | AE8: 3
A9: Camilla L. Rosenvold | B9: Porsgrunn O-lag | C9: 60 | F9: 45 | G9: 40 | H9: 145 | I9: 5 | J9: 120 | K9: 265 | L9: 35 | O9: 50 | P9: 35 | Q9: 120 | R9: 120 | T9: 240 | U9: 6 | V9: 40 | Y9: 26 | Z9: 40 | AA9: 106 | AB9: 70 | AD9: 176 | AE9: 8
A10: Maria Prestbøen | B10: Sandefjord OK | C10: 35 | D10: 60 | E10: 100 | F10: 100 | G10: 100 | H10: 300 | I10: 1 | J10: 100 | K10: 400 | L10: 30 | M10: 100 | N10: 100 | O10: 100 | P10: 45 | Q10: 300 | R10: 100 | T10: 400 | U10: 2 | V10: 100 | W10: 100 | X10: 50 | Y10: 80 | Z10: 80 | AA10: 280 | AB10: 70 | AD10: 350 | AE10: 2
A11: Hanna Nysæter | B11: Skien OK | C11: 45 | E11: 50 | F11: 26 | G11: 10 | H11: 121 | I11: 7 | J11: 90 | K11: 211 | L11: 60 | N11: 22 | O11: 26 | P11: 30 | Q11: 116 | R11: 70 | T11: 186 | U11: 8 | V11: 40 | X11: 50 | Y11: 80 | Z11: 30 | AA11: 170 | AB11: 80 | AD11: 250 | AE11: 6
A12: Ella Arentz Hagen | B12: Sandefjord OK | C12: 50 | D12: 80 | E12: 80 | G12: 50 | H12: 210 | I12: 4 | J12: 80 | K12: 290 | L12: 40 | M12: 60 | N12: 80 | P12: 100 | Q12: 240 | R12: 90 | T12: 330 | U12: 4 | V12: 45 | W12: 50 | X12: 40 | Z12: 35 | AA12: 135 | AB12: 100 | AD12: 235 | AE12: 7
A13: Anna Meen | B13: Porsgrunn O-lag | C13: 40 | E13: 35 | F13: 50 | G13: 45 | H13: 135 | I13: 6 | J13: 70 | K13: 205 | L13: 50 | N13: 50 | O13: 60 | P13: 50 | Q13: 160 | R13: 90 | T13: 250 | U13: 5 | V13: 50 | X13: 35 | Y13: 35 | Z13: 50 | AA13: 135 | AB13: 160 | AD13: 295 | AE13: 5
A14: Therese Hamre Biseth | B14: Notodden OL | C14: 26 | D14: 50 | E14: 30 | F14: 35 | G14: 35 | H14: 120 | I14: 8 | J14: 60 | K14: 180 | L14: 26 | M14: 50 | N14: 40 | O14: 45 | P14: 80 | Q14: 175 | R14: 60 | T14: 235 | U14: 7 | V14: 100 | W14: 60 | X14: 100 | Y14: 100 | Z14: 100 | AA14: 300 | AB14: 200 | AD14: 500 | AE14: 1
A15: Una Rebård | B15: Sandefjord OK | F15: 30 | H15: 30 | I15: 12 | K15: 30 | O15: 30 | Q15: 30 | T15: 30 | U15: 11 | Y15: 35 | AA15: 35 | AD15: 35 | AE15: 11
A16: Stine Berg | B16: Porsgrunn O-lag | E16: 26 | H16: 26 | I16: 13 | K16: 26 | N16: 30 | Q16: 30 | T16: 30 | U16: 11 | X16: 22 | AA16: 22 | AD16: 22 | AE16: 13
A17: Katrine Gjestrum | B17: Hedrum OL | F17: 40 | H17: 40 | I17: 10 | K17: 40 | O17: 22 | Q17: 22 | T17: 22 | U17: 14 | Y17: 22 | AA17: 22 | AD17: 22 | AE17: 13
A18: Josefine Kirste | B18: Skien OK | F18: 22 | H18: 22 | I18: 14 | K18: 22 | O18: 40 | Q18: 40 | T18: 40 | U18: 10 | Y18: 45 | AA18: 45 | AD18: 45 | AE18: 10
A19: Ingrid G. Mehammer | B19: Porsgrunn O-lag | C19: 30 | E19: 22 | H19: 52 | I19: 9 | K19: 52 | L19: 45 | N19: 35 | Q19: 80 | T19: 80 | U19: 9 | V19: 26 | X19: 26 | AA19: 52 | AD19: 52 | AE19: 9
A20: Anne Omholt Berrefjord | B20: Lardal OL | E20: 40 | H20: 40 | I20: 10 | K20: 40 | N20: 26 | Q20: 26 | T20: 26 | U20: 13 | X20: 35 | AA20: 35 | AD20: 35 | AE20: 11
H21: =IF(COUNT(C21:G21)>2,LARGE(C21:G21,1)+LARGE(C21:G21,2)+LARGE(C21:G21,3),SUM(C21:G21)) -> 0 | I21: =IF(H21=0,0,RANK(H21,$H$7:$H$39)) -> 0 | Q21: =IF(COUNT(L21:P21)>2,LARGE(L21:P21,1)+LARGE(L21:P21,2)+LARGE(L21:P21,3),SUM(L21:P21)) -> 0 | T21: =Q21+R21+S21 -> 0 | U21: =IF(T21=0,0,RANK(T21,$T$7:$T$39)) -> 0 | AA21: =IF(COUNT(V21:Z21)>2,LARGE(V21:Z21,1)+LARGE(V21:Z21,2)+LARGE(V21:Z21,3),SUM(V21:Z21)) -> 0 | AD21: =AA21+AB21+AC21 -> 0 | AE21: =IF(AD21=0,0,RANK(AD21,$AD$7:$AD$39)) -> 0
H22: =IF(COUNT(C22:F22)=4,SUM(C22:F22)-MIN(C22:F22),SUM(C22:F22)) -> 0 | I22: =IF(H22=0,0,RANK(H22,$H$7:$H$39)) -> 0 | Q22: =IF(COUNT(L22:O22)=4,SUM(L22:O22)-MIN(L22:O22),SUM(L22:O22)) -> 0 | T22: =Q22+R22+S22 -> 0 | U22: =IF(T22=0,0,RANK(T22,$T$7:$T$39)) -> 0 | AA22: =IF(COUNT(V22:Y22)=4,SUM(V22:Y22)-MIN(V22:Y22),SUM(V22:Y22)) -> 0 | AD22: =AA22+AB22+AC22 -> 0 | AE22: =IF(AD22=0,0,RANK(AD22,$AD$7:$AD$39)) -> 0
H23: 0 | I23: 0 | Q23: 0 | T23: 0 | U23: 0 | AA23: 0 | AD23: 0 | AE23: 0
H24: 0 | I24: 0 | Q24: 0 | T24: 0 | U24: 0 | AA24: 0 | AD24: 0 | AE24: 0
H25: 0 | I25: 0 | Q25: 0 | T25: 0 | U25: 0 | AA25: 0 | AD25: 0 | AE25: 0
H26: 0 | I26: 0 | Q26: 0 | T26: 0 | U26: 0 | AA26: 0 | AD26: 0 | AE26: 0
H27: 0 | I27: 0 | Q27: 0 | T27: 0 | U27: 0 | AA27: 0 | AD27: 0 | AE27: 0
H28: 0 | I28: 0 | Q28: 0 | T28: 0 | U28: 0 | AA28: 0 | AD28: 0 | AE28: 0
H29: 0 | I29: 0 | Q29: 0 | T29: 0 | U29: 0 | AA29: 0 | AD29: 0 | AE29: 0
H30: 0 | I30: 0 | Q30: 0 | T30: 0 | U30: 0 | AA30: 0 | AD30: 0 | AE30: 0
H31: 0 | I31: 0 | Q31: 0 | T31: 0 | U31: 0 | AA31: 0 | AD31: 0 | AE31: 0
H32: 0 | I32: 0 | Q32: 0 | T32: 0 | U32: 0 | AA32: 0 | AD32: 0 | AE32: 0
H33: 0 | I33: 0 | Q33: 0 | T33: 0 | U33: 0 | AA33: 0 | AD33: 0 | AE33: 0
H34: 0 | I34: 0 | Q34: 0 | T34: 0 | U34: 0 | AA34: 0 | AD34: 0 | AE34: 0
H35: 0 | I35: 0 | Q35: 0 | T35: 0 | U35: 0 | AA35: 0 | AD35: 0 | AE35: 0
H36: 0 | I36: 0 | Q36: 0 | T36: 0 | U36: 0 | AA36: 0 | AD36: 0 | AE36: 0
H37: 0 | I37: 0 | Q37: 0 | T37: 0 | U37: 0 | AA37: 0 | AD37: 0 | AE37: 0
H38: 0 | I38: 0 | Q38: 0 | T38: 0 | U38: 0 | AA38: 0 | AD38: 0 | AE38: 0
H39: 0 | I39: 0 | T39: 0 | U39: 0 | AA39: 0 | AD39: 0 | AE39: 0
H40: 0 | I40: =IF(H40=0,0,RANK(H40,$H$7:$H$20)) -> 0
H41: 0 | I41: 0
H42: 0 | I42: 0
H43: 0 | I43: 0
H44: 0 | I44: 0
H45: 0 | I45: 0
H46: 0 | I46: 0

Sheet H1314
C5: Gul ledertrøye | L5: Blå klatretrøye | V5: Grønn spurttrøye
A6: Navn | B6: Klubb | C6: Løp 1 | D6: Løp 2 | E6: Løp 3 | F6: Løp 4 | G6: Løp 5 | H6: Sammenlagt Gul | I6: Rangering før finale | J6: Finale | K6: Total | L6: Løp 1 | M6: Løp 2 | N6: Løp 3 | O6: Løp 4 | P6: Løp 5 | Q6: Sammenlagt Blå | R6: Finale (1) | S6: Finale (2) | T6: Sluttsum | U6: Rangering | V6: Løp 1 | W6: Løp 2 | X6: Løp 3 | Y6: Løp 4 | Z6: Løp 5 | AA6: Sammenlagt Grønn | AB6: Finale (1) | AC6: Finale (M) | AD6: Sluttsum | AE6: Rangering
A7: Skjalg Nysæter | B7: Skien OK | C7: 80 | D7: 60 | E7: 60 | F7: 60 | G7: 80 | H7: =IF(COUNT(C7:G7)>2,LARGE(C7:G7,1)+LARGE(C7:G7,2)+LARGE(C7:G7,3),SUM(C7:G7)) -> 220 | I7: =IF(H7=0,0,RANK(H7,$H$7:$H$39)) -> 3 | J7: 200 | K7: =H7+J7 -> 420 | L7: 80 | M7: 80 | N7: 45 | O7: 30 | P7: 60 | Q7: =IF(COUNT(L7:P7)>2,LARGE(L7:P7,1)+LARGE(L7:P7,2)+LARGE(L7:P7,3),SUM(L7:P7)) -> 220 | R7: 100 | T7: =Q7+R7+S7 -> 320 | U7: =IF(T7=0,0,RANK(T7,$T$7:$T$39)) -> 3 | V7: 30 | W7: 45 | X7: 45 | Y7: 45 | Z7: 60 | AA7: =IF(COUNT(V7:Z7)>2,LARGE(V7:Z7,1)+LARGE(V7:Z7,2)+LARGE(V7:Z7,3),SUM(V7:Z7)) -> 150 | AB7: 100 | AD7: =AA7+AB7+AC7 -> 250 | AE7: =IF(AD7=0,0,RANK(AD7,$AD$7:$AD$39)) -> 5
A8: Håkon Kornmo | B8: Porsgrunn O-lag | C8: 60 | D8: 80 | E8: 10 | H8: 150 | I8: 5 | J8: 160 | K8: 310 | L8: 60 | M8: 100 | N8: 10 | Q8: 170 | R8: 200 | T8: 370 | U8: 2 | V8: 45 | W8: 50 | X8: 10 | AA8: 105 | AB8: 80 | AD8: 185 | AE8: 7
A9: Sindre R. Holt | B9: Hedrum O-lag | C9: 100 | D9: 100 | E9: 45 | F9: 100 | H9: 300 | I9: 1 | J9: 120 | K9: 420 | L9: 100 | M9: 35 | N9: 80 | O9: 100 | Q9: 280 | R9: 160 | T9: 440 | U9: 1 | V9: 50 | W9: 80 | X9: 60 | Y9: 60 | AA9: 200 | AB9: 100 | AD9: 300 | AE9: 3
A10: Olav Aamunstveit Hoff | B10: OTO | D10: 10 | F10: 45 | G10: 60 | H10: 115 | I10: 9 | J10: 100 | K10: 215 | M10: 10 | O10: 60 | P10: 100 | Q10: 170 | R10: 80 | T10: 250 | U10: 5 | W10: 22 | Y10: 45 | Z10: 45 | AA10: 112 | AB10: 120 | AD10: 232 | AE10: 6
A11: Audun Melby Jacobsen | B11: Lardal O-lag | C11: 50 | E11: 100 | H11: 150 | I11: 5 | J11: 90 | K11: 240 | L11: 50 | N11: 100 | Q11: 150 | R11: 90 | T11: 240 | U11: 6 | V11: 100 | X11: 100 | AA11: 200 | AB11: 160 | AD11: 360 | AE11: 2
A12: Alexander Repstad Storemyr | B12: IL Hauken | C12: 45 | D12: 50 | E12: 80 | F12: 40 | G12: 100 | H12: 230 | I12: 2 | J12: 80 | K12: 310 | L12: 26 | M12: 40 | N12: 60 | O12: 45 | P12: 80 | Q12: 185 | R12: 120 | T12: 305 | U12: 4 | V12: 40 | W12: 80 | X12: 40 | Y12: 60 | Z12: 80 | AA12: 220 | AB12: 70 | AD12: 290 | AE12: 4
A13: Even Andre Thorbjørnsen | B13: Notodden OL | D13: 26 | E13: 30 | F13: 30 | G13: 40 | H13: 100 | I13: 10 | J13: 70 | K13: 170 | L13: 22 | M13: 30 | N13: 40 | O13: 40 | P13: 40 | Q13: 120 | R13: 70 | T13: 190 | U13: 7 | V13: 100 | W13: 100 | X13: 80 | Y13: 100 | Z13: 100 | AA13: 300 | AB13: 200 | AD13: 500 | AE13: 1
A14: Elias Lindhjem Mathisen | B14: Sandefjord OK | C14: 30 | D14: 40 | E14: 10 | F14: 80 | G14: 50 | H14: 170 | I14: 4 | K14: 170 | L14: 30 | M14: 60 | N14: 10 | O14: 80 | P14: 45 | Q14: 185 | T14: 185 | U14: 8 | V14: 60 | W14: 45 | X14: 30 | Y14: 30 | Z14: 60 | AA14: 165 | AD14: 165 | AE14: 8
A15: Trym B Island | B15: OTO | D15: 45 | E15: 35 | G15: 45 | H15: 125 | I15: 8 | K15: 125 | M15: 50 | N15: 35 | P15: 50 | Q15: 135 | T15: 135 | U15: 9 | W15: 26 | X15: 26 | Z15: 40 | AA15: 92 | AD15: 92 | AE15: 11
A16: Jørgen Slokvik | B16: Notodden OL | E16: 50 | F16: 35 | H16: 85 | I16: 11 | K16: 85 | N16: 50 | O16: 60 | Q16: 110 | T16: 110 | U16: 10 | X16: 50 | Y16: 80 | AA16: 130 | AD16: 130 | AE16: 9
A17: Rasmus Mathisen | B17: Porsgrunn O-lag | C17: 40 | E17: 40 | F17: 50 | H17: 130 | I17: 7 | K17: 130 | L17: 40 | N17: 30 | O17: 35 | Q17: 105 | T17: 105 | U17: 11 | V17: 26 | X17: 40 | Y17: 35 | AA17: 101 | AD17: 101 | AE17: 10
A18: Henrik Bertelsen | B18: Porsgrunn O-lag | C18: 35 | D18: 30 | H18: 65 | I18: 12 | K18: 65 | L18: 45 | M18: 26 | Q18: 71 | T18: 71 | U18: 12 | V18: 35 | W18: 30 | AA18: 65 | AD18: 65 | AE18: 12
A19: Hermund Ulvsøen | B19: OTO | D19: 35 | H19: 35 | I19: 13 | K19: 35 | M19: 45 | Q19: 45 | T19: 45 | U19: 13 | W19: 45 | AA19: 45 | AD19: 45 | AE19: 13
H20: =IF(COUNT(C20:G20)>2,LARGE(C20:G20,1)+LARGE(C20:G20,2)+LARGE(C20:G20,3),SUM(C20:G20)) -> 0 | I20: =IF(H20=0,0,RANK(H20,$H$7:$H$39)) -> 0 | K20: =H20+J20 -> 00:00:00 | Q20: =IF(COUNT(L20:P20)>2,LARGE(L20:P20,1)+LARGE(L20:P20,2)+LARGE(L20:P20,3),SUM(L20:P20)) -> 0 | T20: =Q20+R20+S20 -> 0 | U20: =IF(T20=0,0,RANK(T20,$T$7:$T$39)) -> 0 | AA20: =IF(COUNT(V20:Z20)>2,LARGE(V20:Z20,1)+LARGE(V20:Z20,2)+LARGE(V20:Z20,3),SUM(V20:Z20)) -> 0 | AD20: =AA20+AB20+AC20 -> 0 | AE20: =IF(AD20=0,0,RANK(AD20,$AD$7:$AD$39)) -> 0
H21: 0 | I21: 0 | K21: 00:00:00 | Q21: 0 | T21: 0 | U21: 0 | AA21: 0 | AD21: 0 | AE21: 0
H22: 0 | I22: 0 | K22: 00:00:00 | Q22: 0 | T22: 0 | U22: 0 | AA22: 0 | AD22: 0 | AE22: 0
H23: 0 | I23: 0 | K23: 00:00:00 | Q23: 0 | T23: 0 | U23: 0 | AA23: 0 | AD23: 0 | AE23: 0
H24: 0 | I24: 0 | K24: 00:00:00 | Q24: 0 | T24: 0 | U24: 0 | AA24: 0 | AD24: 0 | AE24: 0
H25: 0 | I25: 0 | K25: 00:00:00 | Q25: 0 | T25: 0 | U25: 0 | AA25: 0 | AD25: 0 | AE25: 0
H26: 0 | I26: 0 | K26: 00:00:00 | Q26: 0 | T26: 0 | U26: 0 | AA26: 0 | AD26: 0 | AE26: 0
H27: 0 | I27: 0 | K27: 00:00:00 | Q27: 0 | T27: 0 | U27: 0 | AA27: 0 | AD27: 0 | AE27: 0
H28: 0 | I28: 0 | K28: 00:00:00 | Q28: 0 | T28: 0 | U28: 0 | AA28: 0 | AD28: 0 | AE28: 0
H29: =IF(COUNT(C29:F29)=4,SUM(C29:F29)-MIN(C29:F29),SUM(C29:F29)) -> 0 | I29: =IF(H29=0,0,RANK(H29,$H$7:$H$39)) -> 0 | K29: 00:00:00 | Q29: =IF(COUNT(L29:O29)=4,SUM(L29:O29)-MIN(L29:O29),SUM(L29:O29)) -> 0 | T29: =Q29+R29+S29 -> 0 | U29: =IF(T29=0,0,RANK(T29,$T$7:$T$39)) -> 0 | AA29: =IF(COUNT(V29:Y29)=4,SUM(V29:Y29)-MIN(V29:Y29),SUM(V29:Y29)) -> 0 | AD29: =AA29+AB29+AC29 -> 0 | AE29: =IF(AD29=0,0,RANK(AD29,$AD$7:$AD$39)) -> 0
H30: 0 | I30: 0 | K30: 00:00:00 | Q30: 0 | T30: 0 | U30: 0 | AA30: 0 | AD30: 0 | AE30: 0
H31: 0 | I31: 0 | K31: 00:00:00 | Q31: 0 | T31: 0 | U31: 0 | AA31: 0 | AD31: 0 | AE31: 0
H32: 0 | I32: 0 | K32: 00:00:00 | Q32: 0 | T32: 0 | U32: 0 | AA32: 0 | AD32: 0 | AE32: 0
H33: 0 | I33: 0 | K33: 00:00:00 | Q33: 0 | T33: 0 | U33: 0 | AA33: 0 | AD33: 0 | AE33: 0
H34: 0 | I34: 0 | K34: 00:00:00 | Q34: 0 | T34: 0 | U34: 0 | AA34: 0 | AD34: 0 | AE34: 0
H35: 0 | I35: 0 | K35: 00:00:00 | Q35: 0 | T35: 0 | U35: 0 | AA35: 0 | AD35: 0 | AE35: 0
H36: 0 | I36: 0 | K36: 00:00:00 | Q36: 0 | T36: 0 | U36: 0 | AA36: 0 | AD36: 0 | AE36: 0
H37: 0 | I37: 0 | K37: 00:00:00 | Q37: 0 | T37: 0 | U37: 0 | AA37: 0 | AD37: 0 | AE37: 0
H38: 0 | I38: 0 | K38: 00:00:00 | Q38: 0 | T38: 0 | U38: 0 | AA38: 0 | AD38: 0 | AE38: 0
H39: 0 | I39: 0 | K39: 00:00:00 | Q39: 0 | T39: 0 | U39: 0 | AA39: 0 | AD39: 0 | AE39: 0
H40: 0 | I40: =IF(H40=0,0,RANK(H40,$H$7:$H$20)) -> 0
H41: 0 | I41: 0
H42: 0 | I42: 0
H43: 0 | I43: 0
H44: 0 | I44: 0
H45: 0 | I45: 0
H46: 0 | I46: 0

Sheet D1516
C5: Gul ledertrøye | L5: Blå klatretrøye | V5: Grønn spurttrøye
A6: Navn | B6: Klubb | C6: Løp 1 | D6: Løp 2 | E6: Løp 3 | F6: Løp 4 | G6: Løp 5 | H6: Sammenlagt Gul | I6: Rangering før finale | J6: Finale | K6: Totalt | L6: Løp 1 | M6: Løp 2 | N6: Løp 3 | O6: Løp 4 | P6: Løp 5 | Q6: Sammenlagt Blå | R6: Finale (1) | S6: Finale (2) | T6: Sluttsum | U6: Rangering | V6: Løp 1 | W6: Løp 2 | X6: Løp 3 | Y6: Løp 4 | Z6: Løp 5 | AA6: Sammenlagt Grønn | AB6: Finale (1) | AC6: Finale (M) | AD6: Sluttsum | AE6: Rangering
A7: Marit Melby Jacobsen | B7: Lardal OL | E7: 50 | F7: 100 | H7: =IF(COUNT(C7:G7)>2,LARGE(C7:G7,1)+LARGE(C7:G7,2)+LARGE(C7:G7,3),SUM(C7:G7)) -> 150 | I7: =IF(H7=0,0,RANK(H7,$H$7:$H$39)) -> 6 | J7: 200 | K7: =H7+J7 -> 350 | N7: 45 | O7: 80 | Q7: =IF(COUNT(L7:P7)>2,LARGE(L7:P7,1)+LARGE(L7:P7,2)+LARGE(L7:P7,3),SUM(L7:P7)) -> 125 | R7: 200 | T7: =Q7+R7+S7 -> 325 | U7: =IF(T7=0,0,RANK(T7,$T$7:$T$39)) -> 2 | X7: 100 | Y7: 100 | AA7: =IF(COUNT(V7:Z7)>2,LARGE(V7:Z7,1)+LARGE(V7:Z7,2)+LARGE(V7:Z7,3),SUM(V7:Z7)) -> 200 | AB7: 90 | AD7: =AA7+AC7+AB7 -> 290 | AE7: =IF(AD7=0,0,RANK(AD7,$AD$7:$AD$39)) -> 4
A8: Martine Topstad | B8: OTO | C8: 50 | D8: 100 | E8: 100 | G8: 100 | H8: 300 | I8: 1 | J8: 160 | K8: 460 | L8: 100 | M8: 80 | N8: 100 | P8: 50 | Q8: 280 | R8: 200 | T8: 480 | U8: 1 | V8: 100 | W8: 50 | X8: 100 | Z8: 100 | AA8: 300 | AB8: 160 | AD8: 460 | AE8: 1
A9: Astrid Styrvold | B9: Porsgrunn O-lag | D9: 80 | F9: 10 | H9: 90 | I9: 9 | J9: 120 | K9: 210 | M9: 100 | O9: 60 | Q9: 160 | R9: 80 | T9: 240 | U9: 5 | W9: 80 | Y9: 0 | Z9: 0 | AA9: 80 | AB9: 70 | AD9: 150 | AE9: 9
A10: Beate Berg | B10: Porsgrunn O-lag | C10: 100 | E10: 80 | H10: 180 | I10: 4 | J10: 100 | K10: 280 | L10: 60 | N10: 80 | Q10: 140 | R10: 90 | T10: 230 | U10: 6 | V10: 80 | X10: 40 | AA10: 120 | AB10: 120 | AD10: 240 | AE10: 6
A11: Emilie Westin | B11: Porsgrunn O-lag | C11: 45 | E11: 60 | F11: 60 | G11: 80 | H11: 200 | I11: 3 | J11: 90 | K11: 290 | L11: 80 | N11: 60 | O11: 100 | P11: 45 | Q11: 240 | R11: 60 | T11: 300 | U11: 4 | V11: 45 | X11: 50 | Y11: 40 | Z11: 45 | AA11: 140 | AB11: 52 | AD11: 192 | AE11: 7
A12: Martine Gustavsen | B12: Sandefjord OK | C12: 60 | D12: 60 | E12: 35 | F12: 40 | G12: 45 | H12: 165 | I12: 5 | J12: 80 | K12: 245 | L12: 50 | M12: 60 | N12: 35 | O12: 45 | P12: 60 | Q12: 170 | R12: 52 | T12: 222 | U12: 7 | V12: 50 | W12: 60 | X12: 35 | Y12: 45 | Z12: 80 | AA12: 190 | AB12: 90 | AD12: 280 | AE12: 5
A13: Elise Kaland Odden | B13: Porsgrunn O-lag | E13: 10 | F13: 45 | G13: 50 | H13: 105 | I13: 7 | J13: 70 | K13: 175 | N13: 10 | O13: 50 | P13: 80 | Q13: 140 | R13: 70 | T13: 210 | U13: 8 | X13: 10 | Y13: 100 | Z13: 60 | AA13: 170 | AB13: 200 | AD13: 370 | AE13: 3
A14: Linn Hege Roso | B14: Lardal OL | E14: 45 | F14: 50 | H14: 95 | I14: 8 | J14: 60 | K14: 155 | N14: 50 | O14: 35 | Q14: 85 | R14: 120 | T14: 205 | U14: 9 | X14: 60 | Y14: 50 | AA14: 110 | AB14: 60 | AD14: 170 | AE14: 8
A15: Sandra B. Robertsen | B15: OTO | C15: 80 | D15: 50 | E15: 40 | F15: 80 | G15: 60 | H15: 220 | I15: 2 | K15: 220 | L15: 45 | M15: 50 | N15: 40 | O15: 45 | P15: 100 | Q15: 195 | R15: 120 | T15: 315 | U15: 3 | V15: 60 | W15: 100 | X15: 50 | Y15: 100 | Z15: 60 | AA15: 260 | AB15: 120 | AD15: 380 | AE15: 2
H16: =IF(COUNT(C16:F16)=4,SUM(C16:F16)-MIN(C16:F16),SUM(C16:F16)) -> 0 | I16: =IF(H16=0,0,RANK(H16,$H$7:$H$39)) -> 0 | Q16: =IF(COUNT(L16:O16)=4,SUM(L16:O16)-MIN(L16:O16),SUM(L16:O16)) -> 0 | T16: =Q16+R16+S16 -> 0 | U16: =IF(T16=0,0,RANK(T16,$T$7:$T$39)) -> 0 | Y16: 0 | AA16: =IF(COUNT(V16:Y16)=4,SUM(V16:Y16)-MIN(V16:Y16),SUM(V16:Y16)) -> 0 | AD16: =AA16+AB16+AC16 -> 0 | AE16: =IF(AD16=0,0,RANK(AD16,$AD$7:$AD$39)) -> 0
H17: 0 | I17: 0 | Q17: 0 | T17: 0 | U17: 0 | AA17: 0 | AD17: 0 | AE17: 0
H18: 0 | I18: 0 | Q18: 0 | T18: 0 | U18: 0 | AA18: 0 | AD18: 0 | AE18: 0
H19: 0 | I19: 0 | Q19: 0 | T19: 0 | U19: 0 | AA19: 0 | AD19: 0 | AE19: 0
H20: 0 | I20: 0 | Q20: 0 | T20: 0 | U20: 0 | AA20: 0 | AD20: 0 | AE20: 0
H21: 0 | I21: 0 | Q21: 0 | T21: 0 | U21: 0 | AA21: 0 | AD21: 0 | AE21: 0
H22: 0 | I22: 0 | Q22: 0 | T22: 0 | U22: 0 | AA22: 0 | AD22: 0 | AE22: 0
H23: 0 | I23: 0 | Q23: 0 | T23: 0 | U23: 0 | AA23: 0 | AD23: 0 | AE23: 0
H24: 0 | I24: 0 | Q24: 0 | T24: 0 | U24: 0 | AA24: 0 | AD24: 0 | AE24: 0
H25: 0 | I25: 0 | Q25: 0 | T25: 0 | U25: 0 | AA25: 0 | AD25: 0 | AE25: 0
H26: 0 | I26: 0 | Q26: 0 | T26: 0 | U26: 0 | AA26: 0 | AD26: 0 | AE26: 0
H27: 0 | I27: 0 | Q27: 0 | T27: 0 | U27: 0 | AA27: 0 | AD27: 0 | AE27: 0
H28: 0 | I28: 0 | Q28: 0 | T28: 0 | U28: 0 | AA28: 0 | AD28: 0 | AE28: 0
H29: 0 | I29: 0 | Q29: 0 | T29: 0 | U29: 0 | AA29: 0 | AD29: 0 | AE29: 0
H30: 0 | I30: 0 | Q30: 0 | T30: 0 | U30: 0 | AA30: 0 | AD30: 0 | AE30: 0
H31: 0 | I31: 0 | Q31: 0 | T31: 0 | U31: 0 | AA31: 0 | AD31: 0 | AE31: 0
H32: 0 | I32: 0 | Q32: 0 | T32: 0 | U32: 0 | AA32: 0 | AD32: 0 | AE32: 0
H33: 0 | I33: 0 | Q33: 0 | T33: 0 | U33: 0 | AA33: 0 | AD33: 0 | AE33: 0
H34: 0 | I34: 0 | Q34: 0 | T34: 0 | U34: 0 | AA34: 0 | AD34: 0 | AE34: 0
H35: 0 | I35: 0 | Q35: 0 | T35: 0 | U35: 0 | AA35: 0 | AD35: 0 | AE35: 0
H36: 0 | I36: 0 | Q36: 0 | T36: 0 | U36: 0 | AA36: 0 | AD36: 0 | AE36: 0
H37: 0 | I37: 0 | Q37: 0 | T37: 0 | U37: 0 | AA37: 0 | AD37: 0 | AE37: 0
H38: 0 | I38: 0 | Q38: 0 | T38: 0 | U38: 0 | AA38: 0 | AD38: 0 | AE38: 0
H39: 0 | I39: 0 | Q39: 0 | T39: 0 | U39: 0 | AA39: 0 | AD39: 0 | AE39: 0
H40: 0 | I40: =IF(H40=0,0,RANK(H40,$H$7:$H$20)) -> 0
H41: 0 | I41: 0
H42: 0 | I42: 0
H43: 0 | I43: 0
H44: 0 | I44: 0
H45: 0 | I45: 0
H46: 0 | I46: 0

Sheet H1516
C5: Gul ledertrøye | L5: Blå klatretrøye | V5: Grønn spurttrøye
A6: Navn | B6: Klubb | C6: Løp 1 | D6: Løp 2 | E6: Løp 3 | F6: Løp 4 | G6: Løp 5 | H6: Sammenlagt Gul | I6: Rangering før finale | J6: Finale | K6: Totalt | L6: Løp 1 | M6: Løp 2 | N6: Løp 3 | O6: Løp 4 | P6: Løp 5 | Q6: Sammenlagt Blå | R6: Finale (1) | S6: Finale (2) | T6: Sluttsum | U6: Rangering | V6: Løp 1 | W6: Løp 2 | X6: Løp 3 | Y6: Løp 4 | Z6: Løp 5 | AA6: Sammenlagt Grønn | AB6: Finale (1) | AC6: Finale (M) | AD6: Sluttsum | AE6: Rangering
A7: Tobias Kristensen | B7: Larvik OK | C7: 45 | D7: 80 | E7: 20 | F7: 50 | G7: 45 | H7: =IF(COUNT(C7:G7)>2,LARGE(C7:G7,1)+LARGE(C7:G7,2)+LARGE(C7:G7,3),SUM(C7:G7)) -> 175 | I7: =IF(H7=0,0,RANK(H7,$H$7:$H$39)) -> 4 | J7: 200 | K7: =H7+J7 -> 375 | L7: 80 | M7: 50 | N7: 50 | O7: 40 | P7: 35 | Q7: =IF(COUNT(L7:P7)>2,LARGE(L7:P7,1)+LARGE(L7:P7,2)+LARGE(L7:P7,3),SUM(L7:P7)) -> 180 | R7: 90 | T7: =Q7+R7+S7 -> 270 | U7: =IF(T7=0,0,RANK(T7,$T$7:$T$39)) -> 5 | V7: 26 | W7: 80 | X7: 35 | Y7: 35 | Z7: 50 | AA7: =IF(COUNT(V7:Z7)>2,LARGE(V7:Z7,1)+LARGE(V7:Z7,2)+LARGE(V7:Z7,3),SUM(V7:Z7)) -> 165 | AB7: 160 | AD7: =AA7+AB7+AC7 -> 325 | AE7: =IF(AD7=0,0,RANK(AD7,$AD$7:$AD$39)) -> 3
A8: Anders Krona Haflan | B8: OTO | C8: 100 | E8: 45 | F8: 35 | G8: 80 | H8: 225 | I8: 2 | J8: 160 | K8: 385 | L8: 26 | N8: 80 | O8: 80 | P8: 50 | Q8: =IF(COUNT(L8:P8)>2,LARGE(L8:P8,1)+LARGE(L8:P8,2)+LARGE(L8:P8,3),SUM(L8:P8)) -> 210 | R8: 70 | T8: 280 | U8: 3 | V8: 100 | X8: 100 | Y8: 80 | Z8: 100 | AA8: =IF(COUNT(V8:Z8)>2,LARGE(V8:Z8,1)+LARGE(V8:Z8,2)+LARGE(V8:Z8,3),SUM(V8:Z8)) -> 300 | AB8: 120 | AD8: 420 | AE8: 2
A9: Hallvard Arntzen Foss | B9: Sandefjord OK | C9: 60 | D9: 100 | E9: 80 | F9: 100 | G9: 100 | H9: 300 | I9: 1 | J9: 120 | K9: 420 | L9: 60 | M9: 100 | N9: 22 | O9: 35 | P9: 45 | Q9: =IF(COUNT(L9:P9)>2,LARGE(L9:P9,1)+LARGE(L9:P9,2)+LARGE(L9:P9,3),SUM(L9:P9)) -> 205 | R9: 80 | T9: 285 | U9: 2 | V9: 60 | W9: 45 | X9: 40 | Y9: 22 | Z9: 40 | AA9: =IF(COUNT(V9:Z9)>2,LARGE(V9:Z9,1)+LARGE(V9:Z9,2)+LARGE(V9:Z9,3),SUM(V9:Z9)) -> 145 | AB9: 60 | AD9: 205 | AE9: 6
A10: Ole Jacob Olsrød | B10: Stokke | D10: 60 | E10: 20 | F10: 30 | G10: 26 | H10: 116 | I10: 10 | J10: 100 | K10: 216 | M10: 40 | N10: 20 | O10: 100 | P10: 60 | Q10: =IF(COUNT(L10:O10)=4,SUM(L10:O10)-MIN(L10:O10),SUM(L10:O10)) -> 160 | R10: 120 | T10: 280 | U10: 3 | W10: 45 | X10: 22 | Y10: 80 | Z10: 26 | AA10: =IF(COUNT(V10:Y10)=4,SUM(V10:Y10)-MIN(V10:Y10),SUM(V10:Y10)) -> 147 | AB10: 70 | AD10: 217 | AE10: 5
A11: Mathias Gløersen | B11: OTO | E11: 60 | F11: 80 | G11: 40 | H11: 180 | I11: 3 | J11: 90 | K11: 270 | N11: 20 | O11: 20 | P11: 30 | Q11: =IF(COUNT(L11:O11)=4,SUM(L11:O11)-MIN(L11:O11),SUM(L11:O11)) -> 40 | R11: 200 | T11: 240 | U11: 7 | X11: 50 | Y11: 45 | Z11: 80 | AA11: =IF(COUNT(V11:Y11)=4,SUM(V11:Y11)-MIN(V11:Y11),SUM(V11:Y11)) -> 95 | AB11: 100 | AD11: 195 | AE11: 7
A12: Herman Kirste | B12: Skien OK | E12: 30 | F12: 20 | G12: 60 | H12: 110 | I12: 11 | J12: 80 | K12: 190 | N12: 40 | O12: 20 | P12: 80 | Q12: =IF(COUNT(L12:O12)=4,SUM(L12:O12)-MIN(L12:O12),SUM(L12:O12)) -> 60 | R12: 120 | T12: 180 | U12: 9 | X12: 45 | Y12: 35 | Z12: 50 | AA12: =IF(COUNT(V12:Y12)=4,SUM(V12:Y12)-MIN(V12:Y12),SUM(V12:Y12)) -> 80 | AB12: 90 | AD12: 170 | AE12: 9
A13: Fredrik Moe | B13: Sandefjord OK | C13: 50 | D13: 45 | E13: 10 | F13: 40 | G13: 30 | H13: 135 | I13: 7 | J13: 70 | K13: 205 | L13: 50 | M13: 80 | N13: 100 | O13: 20 | P13: 100 | Q13: =IF(COUNT(L13:P13)>2,LARGE(L13:P13,1)+LARGE(L13:P13,2)+LARGE(L13:P13,3),SUM(L13:P13)) -> 280 | R13: 160 | T13: 440 | U13: 1 | V13: 60 | W13: 26 | X13: 20 | Y13: 45 | Z13: 35 | AA13: =IF(COUNT(V13:Z13)>2,LARGE(V13:Z13,1)+LARGE(V13:Z13,2)+LARGE(V13:Z13,3),SUM(V13:Z13)) -> 140 | AB13: 40 | AD13: 180 | AE13: 8
A14: Ole Flaatten | B14: OK Skeidi | C14: 80 | E14: 50 | F14: 45 | G14: 35 | H14: 175 | I14: 4 | J14: 60 | K14: 235 | L14: 100 | N14: 35 | O14: 60 | P14: 26 | Q14: 195 | R14: 52 | T14: 247 | U14: 6 | V14: 45 | X14: 20 | Y14: 22 | Z14: 30 | AA14: 97 | AB14: 44 | AD14: 141 | AE14: 10
A15: Martin Sollie Nåtedal | B15: OL Trollo | C15: 22 | D15: 40 | E15: 26 | H15: 88 | I15: 13 | J15: 52 | K15: 140 | L15: 35 | M15: 60 | N15: 45 | Q15: 140 | R15: 60 | T15: 200 | U15: 8 | V15: 35 | W15: 100 | X15: 100 | AA15: 235 | AB15: 200 | AD15: 435 | AE15: 1
A16: Simon Nysæter | B16: Skien OK | C16: 20 | E16: 35 | H16: 55 | I16: 17 | J16: 44 | K16: 99 | L16: 22 | N16: 20 | Q16: 42 | R16: 40 | T16: 82 | U16: 14 | V16: 20 | X16: 20 | AA16: 40 | AB16: 52 | AD16: 92 | AE16: 15
A17: Jarle Lysnes | B17: Hedrum O-lag | C17: 26 | D17: 30 | E17: 100 | F17: 20 | H17: 156 | I17: 6 | K17: 156 | L17: 30 | M17: 26 | N17: 60 | O17: 45 | Q17: 135 | T17: 135 | U17: 10 | V17: 80 | W17: 80 | X17: 60 | Y17: 80 | AA17: 240 | AD17: 240 | AE17: 4
A18: Simen Åmodt Amundsen | B18: Lardal O-lag | C18: 30 | D18: 50 | E18: 40 | F18: 20 | H18: 120 | I18: 8 | K18: 120 | L18: 40 | M18: 30 | N18: 26 | O18: 20 | Q18: 96 | T18: 96 | U18: 11 | V18: 45 | W18: 45 | X18: 20 | Y18: 20 | AA18: 110 | AD18: 110 | AE18: 12
A19: Øystein Fruseth Christiansen | B19: OTO | C19: 40 | E19: 20 | F19: 60 | H19: 120 | I19: 8 | K19: 120 | L19: 45 | N19: 20 | O19: 30 | Q19: 95 | T19: 95 | U19: 12 | V19: 20 | X19: 20 | Y19: 20 | AA19: 60 | AD19: 60 | AE19: 18
A20: Anders B Kristoffersen | B20: Larvik OK | C20: 20 | D20: 26 | F20: 20 | H20: 66 | I20: 15 | K20: 66 | L20: 20 | M20: 45 | O20: 20 | Q20: =IF(COUNT(L20:O20)=4,SUM(L20:O20)-MIN(L20:O20),SUM(L20:O20)) -> 85 | T20: 85 | U20: 13 | V20: 22 | W20: 80 | Y20: 35 | AA20: =IF(COUNT(V20:Y20)=4,SUM(V20:Y20)-MIN(V20:Y20),SUM(V20:Y20)) -> 137 | AD20: 137 | AE20: 11
A21: Jens Didrik Berg | B21: Larvik OK | C21: 35 | D21: 35 | F21: 22 | H21: 92 | I21: 12 | K21: 92 | L21: 20 | M21: 40 | O21: 22 | Q21: =IF(COUNT(L21:P21)>2,LARGE(L21:P21,1)+LARGE(L21:P21,2)+LARGE(L21:P21,3),SUM(L21:P21)) -> 82 | T21: 82 | U21: 14 | V21: 35 | W21: 45 | Y21: 20 | AA21: =IF(COUNT(V21:Z21)>2,LARGE(V21:Z21,1)+LARGE(V21:Z21,2)+LARGE(V21:Z21,3),SUM(V21:Z21)) -> 100 | AD21: 100 | AE21: 13
A22: Marius Lindvall | B22: Larvik OK | C22: 20 | E22: 20 | F22: 20 | H22: 60 | I22: 16 | K22: 60 | L22: 20 | N22: 20 | O22: 20 | Q22: =IF(COUNT(L22:P22)>2,LARGE(L22:P22,1)+LARGE(L22:P22,2)+LARGE(L22:P22,3),SUM(L22:P22)) -> 60 | T22: 60 | U22: 16 | V22: 20 | X22: 20 | Y22: 22 | AA22: =IF(COUNT(V22:Z22)>2,LARGE(V22:Z22,1)+LARGE(V22:Z22,2)+LARGE(V22:Z22,3),SUM(V22:Z22)) -> 62 | AD22: 62 | AE22: 17
A23: Bjørnar Brevik | B23: Stokke | F23: 26 | H23: 26 | I23: 18 | K23: 26 | O23: 50 | Q23: =IF(COUNT(L23:O23)=4,SUM(L23:O23)-MIN(L23:O23),SUM(L23:O23)) -> 50 | T23: 50 | U23: 17 | Y23: 100 | AA23: =IF(COUNT(V23:Y23)=4,SUM(V23:Y23)-MIN(V23:Y23),SUM(V23:Y23)) -> 100 | AD23: 100 | AE23: 13
A24: Vegard Landsverk | B24: Skien OK | E24: 22 | G24: 50 | H24: 72 | I24: 14 | K24: 72 | N24: 30 | P24: 40 | Q24: =IF(COUNT(L24:O24)=4,SUM(L24:O24)-MIN(L24:O24),SUM(L24:O24)) -> 30 | T24: 30 | U24: 19 | X24: 35 | Z24: 60 | AA24: =IF(COUNT(V24:Y24)=4,SUM(V24:Y24)-MIN(V24:Y24),SUM(V24:Y24)) -> 35 | AD24: 35 | AE24: 19
A25: Petter Tobias Haugland Bettum | B25: Stokke | F25: 20 | H25: 20 | I25: 19 | K25: 20 | O25: 26 | Q25: =IF(COUNT(L25:O25)=4,SUM(L25:O25)-MIN(L25:O25),SUM(L25:O25)) -> 26 | T25: 26 | U25: 20 | Y25: 20 | AA25: =IF(COUNT(V25:Y25)=4,SUM(V25:Y25)-MIN(V25:Y25),SUM(V25:Y25)) -> 20 | AD25: 20 | AE25: 21
A26: Emil Brattbakk | B26: OTO | E26: 20 | H26: 20 | I26: 19 | K26: 20 | N26: 20 | Q26: =IF(COUNT(L26:O26)=4,SUM(L26:O26)-MIN(L26:O26),SUM(L26:O26)) -> 20 | T26: 20 | U26: 21 | X26: 35 | AA26: =IF(COUNT(V26:Y26)=4,SUM(V26:Y26)-MIN(V26:Y26),SUM(V26:Y26)) -> 35 | AD26: 35 | AE26: 19
A27: Fredrik Polland | B27: Skeidi | H27: =IF(COUNT(C27:F27)=4,SUM(C27:F27)-MIN(C27:F27),SUM(C27:F27)) -> 0 | I27: =IF(H27=0,0,RANK(H27,$H$7:$H$39)) -> 0 | J27: 40 | K27: 40 | Q27: =IF(COUNT(L27:O27)=4,SUM(L27:O27)-MIN(L27:O27),SUM(L27:O27)) -> 0 | R27: 44 | T27: =Q27+R27+S27 -> 44 | U27: =IF(T27=0,0,RANK(T27,$T$7:$T$39)) -> 18 | AA27: =IF(COUNT(V27:Y27)=4,SUM(V27:Y27)-MIN(V27:Y27),SUM(V27:Y27)) -> 0 | AB27: 90 | AD27: =AA27+AB27+AC27 -> 90 | AE27: =IF(AD27=0,0,RANK(AD27,$AD$7:$AD$39)) -> 16
H28: 0 | I28: 0 | Q28: 0 | T28: 0 | U28: 0 | AA28: 0 | AD28: 0 | AE28: 0
H29: 0 | I29: 0 | Q29: 0 | T29: 0 | U29: 0 | AA29: 0 | AD29: 0 | AE29: 0
H30: 0 | I30: 0 | Q30: 0 | T30: 0 | U30: 0 | AA30: 0 | AD30: 0 | AE30: 0
H31: 0 | I31: 0 | Q31: 0 | T31: 0 | U31: 0 | AA31: 0 | AD31: 0 | AE31: 0
H32: 0 | I32: 0 | Q32: 0 | T32: 0 | U32: 0 | AA32: 0 | AD32: 0 | AE32: 0
H33: 0 | I33: 0 | Q33: 0 | T33: 0 | U33: 0 | AA33: 0 | AD33: 0 | AE33: 0
H34: 0 | I34: 0 | Q34: 0 | T34: 0 | U34: 0 | AA34: 0 | AD34: 0 | AE34: 0
H35: 0 | I35: 0 | Q35: 0 | T35: 0 | U35: 0 | AA35: 0 | AD35: 0 | AE35: 0
H36: 0 | I36: 0 | Q36: 0 | T36: 0 | U36: 0 | AA36: 0 | AD36: 0 | AE36: 0
H37: 0 | I37: 0 | Q37: 0 | T37: 0 | U37: 0 | AA37: 0 | AD37: 0 | AE37: 0
H38: 0 | I38: 0 | Q38: 0 | T38: 0 | U38: 0 | AA38: 0 | AD38: 0 | AE38: 0
H39: 0 | I39: 0 | Q39: 0 | T39: 0 | U39: 0 | AA39: 0 | AD39: 0 | AE39: 0
H40: 0 | I40: =IF(H40=0,0,RANK(H40,$H$7:$H$20)) -> 0
H41: 0 | I41: 0
H42: 0 | I42: 0
H43: 0 | I43: 0
H44: 0 | I44: 0
H45: 0 | I45: 0
H46: 0 | I46: 0
